Workbook

Sheet Készletlista
K2: Kiemeli az utánrendelendő cikkeket? | L2: Igen
B3: Utánrendeléshez | C3: Készletazonosító | D3: Név | E3: Leírás | F3: Egységár | G3: Raktáron lévő mennyiség | H3: Készletérték | I3: Utánrendelési szint | J3: Utánrendelés ideje napokban | K3: Utánrendelési mennyiség | L3: Megszüntetve?
B4: =IFERROR((Készletlista_Táblázat[[#This Row],[Raktáron lévő mennyiség]]<=Készletlista_Táblázat[[#This Row],[Utánrendelési szint]])*(Készletlista_Táblázat[[#This Row],[Megszüntetve?]]="")*értékKiemelés,0) -> 1 | C4: IN0001 | D4: 1. cikk | E4: 1. leírás | F4: 51.00 Ft | G4: 25 | H4: =Készletlista_Táblázat[[#This Row],[Egységár]]*Készletlista_Táblázat[[#This Row],[Raktáron lévő mennyiség]] -> 1,275.00 Ft | I4: 29 | J4: 13 | K4: 50
B5: =IFERROR((Készletlista_Táblázat[[#This Row],[Raktáron lévő mennyiség]]<=Készletlista_Táblázat[[#This Row],[Utánrendelési szint]])*(Készletlista_Táblázat[[#This Row],[Megszüntetve?]]="")*értékKiemelés,0) -> 1 | C5: IN0002 | D5: 2. tétel | E5: 2. leírás | F5: 93.00 Ft | G5: 132 | H5: =Készletlista_Táblázat[[#This Row],[Egységár]]*Készletlista_Táblázat[[#This Row],[Raktáron lévő mennyiség]] -> 12,276.00 Ft | I5: 231 | J5: 4 | K5: 50
B6: =IFERROR((Készletlista_Táblázat[[#This Row],[Raktáron lévő mennyiség]]<=Készletlista_Táblázat[[#This Row],[Utánrendelési szint]])*(Készletlista_Táblázat[[#This Row],[Megszüntetve?]]="")*értékKiemelés,0) -> 0 | C6: IN0003 | D6: 3. tétel | E6: 3. leírás | F6: 57.00 Ft | G6: 151 | H6: =Készletlista_Táblázat[[#This Row],[Egységár]]*Készletlista_Táblázat[[#This Row],[Raktáron lévő mennyiség]] -> 8,607.00 Ft | I6: 114 | J6: 11 | K6: 150
B7: =IFERROR((Készletlista_Táblázat[[#This Row],[Raktáron lévő mennyiség]]<=Készletlista_Táblázat[[#This Row],[Utánrendelési szint]])*(Készletlista_Táblázat[[#This Row],[Megszüntetve?]]="")*értékKiemelés,0) -> 0 | C7: IN0004 | D7: 4. tétel | E7: 4. leírás | F7: 19.00 Ft | G7: 186 | H7: =Készletlista_Táblázat[[#This Row],[Egységár]]*Készletlista_Táblázat[[#This Row],[Raktáron lévő mennyiség]] -> 3,534.00 Ft | I7: 158 | J7: 6 | K7: 50
B8: =IFERROR((Készletlista_Táblázat[[#This Row],[Raktáron lévő mennyiség]]<=Készletlista_Táblázat[[#This Row],[Utánrendelési szint]])*(Készletlista_Táblázat[[#This Row],[Megszüntetve?]]="")*értékKiemelés,0) -> 0 | C8: IN0005 | D8: 5. tétel | E8: 5. leírás | F8: 75.00 Ft | G8: 62 | H8: =Készletlista_Táblázat[[#This Row],[Egységár]]*Készletlista_Táblázat[[#This Row],[Raktáron lévő mennyiség]] -> 4,650.00 Ft | I8: 39 | J8: 12 | K8: 50
B9: =IFERROR((Készletlista_Táblázat[[#This Row],[Raktáron lévő mennyiség]]<=Készletlista_Táblázat[[#This Row],[Utánrendelési szint]])*(Készletlista_Táblázat[[#This Row],[Megszüntetve?]]="")*értékKiemelés,0) -> 1 | C9: IN0006 | D9: 6. tétel | E9: 6. leírás | F9: 11.00 Ft | G9: 5 | H9: =Készletlista_Táblázat[[#This Row],[Egységár]]*Készletlista_Táblázat[[#This Row],[Raktáron lévő mennyiség]] -> 55.00 Ft | I9: 9 | J9: 13 | K9: 150
B10: =IFERROR((Készletlista_Táblázat[[#This Row],[Raktáron lévő mennyiség]]<=Készletlista_Táblázat[[#This Row],[Utánrendelési szint]])*(Készletlista_Táblázat[[#This Row],[Megszüntetve?]]="")*értékKiemelés,0) -> 0 | C10: IN0007 | D10: 7. cikk | E10: 7. leírás | F10: 56.00 Ft | G10: 58 | H10: =Készletlista_Táblázat[[#This Row],[Egységár]]*Készletlista_Táblázat[[#This Row],[Raktáron lévő mennyiség]] -> 3,248.00 Ft | I10: 109 | J10: 7 | K10: 100 | L10: Igen
B11: =IFERROR((Készletlista_Táblázat[[#This Row],[Raktáron lévő mennyiség]]<=Készletlista_Táblázat[[#This Row],[Utánrendelési szint]])*(Készletlista_Táblázat[[#This Row],[Megszüntetve?]]="")*értékKiemelés,0) -> 1 | C11: IN0008 | D11: 8. cikk | E11: 8. leírás | F11: 38.00 Ft | G11: 101 | H11: =Készletlista_Táblázat[[#This Row],[Egységár]]*Készletlista_Táblázat[[#This Row],[Raktáron lévő mennyiség]] -> 3,838.00 Ft | I11: 162 | J11: 3 | K11: 100
B12: =IFERROR((Készletlista_Táblázat[[#This Row],[Raktáron lévő mennyiség]]<=Készletlista_Táblázat[[#This Row],[Utánrendelési szint]])*(Készletlista_Táblázat[[#This Row],[Megszüntetve?]]="")*értékKiemelés,0) -> 0 | C12: IN0009 | D12: 9. cikk | E12: 9. leírás | F12: 59.00 Ft | G12: 122 | H12: =Készletlista_Táblázat[[#This Row],[Egységár]]*Készletlista_Táblázat[[#This Row],[Raktáron lévő mennyiség]] -> 7,198.00 Ft | I12: 82 | J12: 3 | K12: 150
B13: =IFERROR((Készletlista_Táblázat[[#This Row],[Raktáron lévő mennyiség]]<=Készletlista_Táblázat[[#This Row],[Utánrendelési szint]])*(Készletlista_Táblázat[[#This Row],[Megszüntetve?]]="")*értékKiemelés,0) -> 1 | C13: IN0010 | D13: 10. cikk | E13: 10. leírás | F13: 50.00 Ft | G13: 175 | H13: =Készletlista_Táblázat[[#This Row],[Egységár]]*Készletlista_Táblázat[[#This Row],[Raktáron lévő mennyiség]] -> 8,750.00 Ft | I13: 283 | J13: 8 | K13: 150
B14: =IFERROR((Készletlista_Táblázat[[#This Row],[Raktáron lévő mennyiség]]<=Készletlista_Táblázat[[#This Row],[Utánrendelési szint]])*(Készletlista_Táblázat[[#This Row],[Megszüntetve?]]="")*értékKiemelés,0) -> 1 | C14: IN0011 | D14: 11. cikk | E14: 11. leírás | F14: 59.00 Ft | G14: 176 | H14: =Készletlista_Táblázat[[#This Row],[Egységár]]*Készletlista_Táblázat[[#This Row],[Raktáron lévő mennyiség]] -> 10,384.00 Ft | I14: 229 | J14: 1 | K14: 100
B15: =IFERROR((Készletlista_Táblázat[[#This Row],[Raktáron lévő mennyiség]]<=Készletlista_Táblázat[[#This Row],[Utánrendelési szint]])*(Készletlista_Táblázat[[#This Row],[Megszüntetve?]]="")*értékKiemelés,0) -> 1 | C15: IN0012 | D15: 12. cikk | E15: 12. leírás | F15: 18.00 Ft | G15: 22 | H15: =Készletlista_Táblázat[[#This Row],[Egységár]]*Készletlista_Táblázat[[#This Row],[Raktáron lévő mennyiség]] -> 396.00 Ft | I15: 36 | J15: 12 | K15: 50
B16: =IFERROR((Készletlista_Táblázat[[#This Row],[Raktáron lévő mennyiség]]<=Készletlista_Táblázat[[#This Row],[Utánrendelési szint]])*(Készletlista_Táblázat[[#This Row],[Megszüntetve?]]="")*értékKiemelés,0) -> 1 | C16: IN0013 | D16: 13. cikk | E16: 13. leírás | F16: 26.00 Ft | G16: 72 | H16: =Készletlista_Táblázat[[#This Row],[Egységár]]*Készletlista_Táblázat[[#This Row],[Raktáron lévő mennyiség]] -> 1,872.00 Ft | I16: 102 | J16: 9 | K16: 100
B17: =IFERROR((Készletlista_Táblázat[[#This Row],[Raktáron lévő mennyiség]]<=Készletlista_Táblázat[[#This Row],[Utánrendelési szint]])*(Készletlista_Táblázat[[#This Row],[Megszüntetve?]]="")*értékKiemelés,0) -> 1 | C17: IN0014 | D17: 14. cikk | E17: 14. leírás | F17: 42.00 Ft | G17: 62 | H17: =Készletlista_Táblázat[[#This Row],[Egységár]]*Készletlista_Táblázat[[#This Row],[Raktáron lévő mennyiség]] -> 2,604.00 Ft | I17: 83 | J17: 2 | K17: 100
B18: =IFERROR((Készletlista_Táblázat[[#This Row],[Raktáron lévő mennyiség]]<=Készletlista_Táblázat[[#This Row],[Utánrendelési szint]])*(Készletlista_Táblázat[[#This Row],[Megszüntetve?]]="")*értékKiemelés,0) -> 0 | C18: IN0015 | D18: 15. cikk | E18: 15. leírás | F18: 32.00 Ft | G18: 46 | H18: =Készletlista_Táblázat[[#This Row],[Egységár]]*Készletlista_Táblázat[[#This Row],[Raktáron lévő mennyiség]] -> 1,472.00 Ft | I18: 23 | J18: 15 | K18: 50
B19: =IFERROR((Készletlista_Táblázat[[#This Row],[Raktáron lévő mennyiség]]<=Készletlista_Táblázat[[#This Row],[Utánrendelési szint]])*(Készletlista_Táblázat[[#This Row],[Megszüntetve?]]="")*értékKiemelés,0) -> 1 | C19: IN0016 | D19: 16. cikk | E19: 16. leírás | F19: 90.00 Ft | G19: 96 | H19: =Készletlista_Táblázat[[#This Row],[Egységár]]*Készletlista_Táblázat[[#This Row],[Raktáron lévő mennyiség]] -> 8,640.00 Ft | I19: 180 | J19: 3 | K19: 50
B20: =IFERROR((Készletlista_Táblázat[[#This Row],[Raktáron lévő mennyiség]]<=Készletlista_Táblázat[[#This Row],[Utánrendelési szint]])*(Készletlista_Táblázat[[#This Row],[Megszüntetve?]]="")*értékKiemelés,0) -> 0 | C20: IN0017 | D20: 17. cikk | E20: 17. leírás | F20: 97.00 Ft | G20: 57 | H20: =Készletlista_Táblázat[[#This Row],[Egységár]]*Készletlista_Táblázat[[#This Row],[Raktáron lévő mennyiség]] -> 5,529.00 Ft | I20: 98 | J20: 12 | K20: 50 | L20: Igen
B21: =IFERROR((Készletlista_Táblázat[[#This Row],[Raktáron lévő mennyiség]]<=Készletlista_Táblázat[[#This Row],[Utánrendelési szint]])*(Készletlista_Táblázat[[#This Row],[Megszüntetve?]]="")*értékKiemelés,0) -> 1 | C21: IN0018 | D21: 18. cikk | E21: 18. leírás | F21: 12.00 Ft | G21: 6 | H21: =Készletlista_Táblázat[[#This Row],[Egységár]]*Készletlista_Táblázat[[#This Row],[Raktáron lévő mennyiség]] -> 72.00 Ft | I21: 7 | J21: 13 | K21: 50
B22: =IFERROR((Készletlista_Táblázat[[#This Row],[Raktáron lévő mennyiség]]<=Készletlista_Táblázat[[#This Row],[Utánrendelési szint]])*(Készletlista_Táblázat[[#This Row],[Megszüntetve?]]="")*értékKiemelés,0) -> 1 | C22: IN0019 | D22: 19. cikk | E22: 19. leírás | F22: 82.00 Ft | G22: 143 | H22: =Készletlista_Táblázat[[#This Row],[Egységár]]*Készletlista_Táblázat[[#This Row],[Raktáron lévő mennyiség]] -> 11,726.00 Ft | I22: 164 | J22: 12 | K22: 150
B23: =IFERROR((Készletlista_Táblázat[[#This Row],[Raktáron lévő mennyiség]]<=Készletlista_Táblázat[[#This Row],[Utánrendelési szint]])*(Készletlista_Táblázat[[#This Row],[Megszüntetve?]]="")*értékKiemelés,0) -> 0 | C23: IN0020 | D23: 20. cikk | E23: 20. leírás | F23: 16.00 Ft | G23: 124 | H23: =Készletlista_Táblázat[[#This Row],[Egységár]]*Készletlista_Táblázat[[#This Row],[Raktáron lévő mennyiség]] -> 1,984.00 Ft | I23: 113 | J23: 14 | K23: 50
B24: =IFERROR((Készletlista_Táblázat[[#This Row],[Raktáron lévő mennyiség]]<=Készletlista_Táblázat[[#This Row],[Utánrendelési szint]])*(Készletlista_Táblázat[[#This Row],[Megszüntetve?]]="")*értékKiemelés,0) -> 0 | C24: IN0021 | D24: 21. cikk | E24: 21. leírás | F24: 19.00 Ft | G24: 112 | H24: =Készletlista_Táblázat[[#This Row],[Egységár]]*Készletlista_Táblázat[[#This Row],[Raktáron lévő mennyiség]] -> 2,128.00 Ft | I24: 75 | J24: 11 | K24: 50
B25: =IFERROR((Készletlista_Táblázat[[#This Row],[Raktáron lévő mennyiség]]<=Készletlista_Táblázat[[#This Row],[Utánrendelési szint]])*(Készletlista_Táblázat[[#This Row],[Megszüntetve?]]="")*értékKiemelés,0) -> 0 | C25: IN0022 | D25: 22. cikk | E25: 22. leírás | F25: 24.00 Ft | G25: 182 | H25: =Készletlista_Táblázat[[#This Row],[Egységár]]*Készletlista_Táblázat[[#This Row],[Raktáron lévő mennyiség]] -> 4,368.00 Ft | I25: 132 | J25: 15 | K25: 150
B26: =IFERROR((Készletlista_Táblázat[[#This Row],[Raktáron lévő mennyiség]]<=Készletlista_Táblázat[[#This Row],[Utánrendelési szint]])*(Készletlista_Táblázat[[#This Row],[Megszüntetve?]]="")*értékKiemelés,0) -> 0 | C26: IN0023 | D26: 23. cikk | E26: 23. leírás | F26: 29.00 Ft | G26: 106 | H26: =Készletlista_Táblázat[[#This Row],[Egységár]]*Készletlista_Táblázat[[#This Row],[Raktáron lévő mennyiség]] -> 3,074.00 Ft | I26: 142 | J26: 1 | K26: 150 | L26: Igen
B27: =IFERROR((Készletlista_Táblázat[[#This Row],[Raktáron lévő mennyiség]]<=Készletlista_Táblázat[[#This Row],[Utánrendelési szint]])*(Készletlista_Táblázat[[#This Row],[Megszüntetve?]]="")*értékKiemelés,0) -> 0 | C27: IN0024 | D27: 24. cikk | E27: 24. leírás | F27: 75.00 Ft | G27: 173 | H27: =Készletlista_Táblázat[[#This Row],[Egységár]]*Készletlista_Táblázat[[#This Row],[Raktáron lévő mennyiség]] -> 12,975.00 Ft | I27: 127 | J27: 9 | K27: 100
B28: =IFERROR((Készletlista_Táblázat[[#This Row],[Raktáron lévő mennyiség]]<=Készletlista_Táblázat[[#This Row],[Utánrendelési szint]])*(Készletlista_Táblázat[[#This Row],[Megszüntetve?]]="")*értékKiemelés,0) -> 0 | C28: IN0025 | D28: 25. cikk | E28: 25. leírás | F28: 14.00 Ft | G28: 28 | H28: =Készletlista_Táblázat[[#This Row],[Egységár]]*Készletlista_Táblázat[[#This Row],[Raktáron lévő mennyiség]] -> 392.00 Ft | I28: 21 | J28: 8 | K28: 50
